{"text_format":"2","workbook":"xlsx","n_sheets":18,"sheets":["Főösszesítő","Munkanem összesítő","2.Bontás, építőanyagok újraha","31.Helyszíni beton és vasbeton","32.Előregyártott épületszerkez","33.Falazás és egyéb kőműves mu","36.Vakolás és rabicolás","39.Szárazépítés","42.Hideg- és melegburkolatok k","44.Fa- és műanyag szerkezet el","45.Fém nyílászáró és épületlak","47.Felületképzés","48.Szigetelés","49.Árnyékolók beépítése","71.Elektromos energiaellátás,","72.Épületautomatika, -felügyel","81.Épületgépészeti csővezeték","82.Épületgépészeti szerelvénye"],"not_rendered":{"charts":0,"images":0,"macros":0,"external_links":0,"defined_names":0,"comments":0,"pivot_tables":0},"unopened":[],"bounds":{"document_bytes":16777216,"sheet_cells":100000,"run_cost":"one","rows_first":2000,"rows_last":500,"rows_between":2000,"halvings":0,"cell_chars":16384,"cell_head_chars":4096},"cells_cut":0,"cells_raw":0,"read":"whole","date_system":"1900"}

{"sheet":"Főösszesítő","index":0,"n_rows":11,"n_cols":4,"rows_kept":11,"cut":false,"hidden":false,"merged":[[3,0,3,3],[5,0,5,3],[8,2,8,3],[9,2,9,3],[10,2,10,3]]}
["PSZICHIÁTRIAI KLINIKA REHABILITÁCIÓS osztály felújítása "]
[]
[]
[]
[]
["Költségvetés főösszesítő"]
["Megnevezés",null,"Anyagköltség","Díjköltség"]
["1 Építmény közvetlen költségei",null,{"$f":"'Munkanem összesítő'!C18","v":0},{"$f":"'Munkanem összesítő'!D18","v":0}]
["2.1 ÁFA vetítési alap",null,{"$f":"ROUND(C8+D8,0)","v":0}]
["2.2 ÁFA",0.27,{"$f":"ROUND(C9*B10,0)","v":0}]
["3 A munka ára (HUF)",null,{"$f":"ROUND(C10+C9,0)","v":0}]

{"sheet":"Munkanem összesítő","index":1,"n_rows":18,"n_cols":4,"rows_kept":18,"cut":false,"hidden":false,"merged":[]}
["Ssz.","Megnevezés","Anyagköltség","Díjköltség"]
["2","Bontás, építőanyagok újrahasznosítása",{"$f":"'2.Bontás, építőanyagok újraha'!H4","v":0},{"$f":"'2.Bontás, építőanyagok újraha'!I4","v":0}]
["31","Helyszíni beton és vasbeton munkák",{"$f":"'31.Helyszíni beton és vasbeton'!H4","v":0},{"$f":"'31.Helyszíni beton és vasbeton'!I4","v":0}]
["32","Előregyártott épületszerkezeti elem elhelyezése és szerelése",{"$f":"'32.Előregyártott épületszerkez'!H3","v":0},{"$f":"'32.Előregyártott épületszerkez'!I3","v":0}]
["33","Falazás és egyéb kőműves munkák",{"$f":"'33.Falazás és egyéb kőműves mu'!H6","v":0},{"$f":"'33.Falazás és egyéb kőműves mu'!I6","v":0}]
["36","Vakolás és rabicolás",{"$f":"'36.Vakolás és rabicolás'!H6","v":0},{"$f":"'36.Vakolás és rabicolás'!I6","v":0}]
["39","Szárazépítés",{"$f":"'39.Szárazépítés'!H4","v":0},{"$f":"'39.Szárazépítés'!I4","v":0}]
["42","Hideg- és melegburkolatok készítése, aljzat előkészítés",{"$f":"'42.Hideg- és melegburkolatok k'!H9","v":0},{"$f":"'42.Hideg- és melegburkolatok k'!I9","v":0}]
["44","Fa- és műanyag szerkezet elhelyezése",{"$f":"'44.Fa- és műanyag szerkezet el'!H10","v":0},{"$f":"'44.Fa- és műanyag szerkezet el'!I10","v":0}]
["45","Fém nyílászáró és épületlakatos szerkezet elhelyezése",{"$f":"'45.Fém nyílászáró és épületlak'!H7","v":0},{"$f":"'45.Fém nyílászáró és épületlak'!I7","v":0}]
["47","Felületképzés",{"$f":"'47.Felületképzés'!H8","v":0},{"$f":"'47.Felületképzés'!I8","v":0}]
["48","Szigetelés",{"$f":"'48.Szigetelés'!H3","v":0},{"$f":"'48.Szigetelés'!I3","v":0}]
["49","Árnyékolók beépítése",{"$f":"'49.Árnyékolók beépítése'!H3","v":0},{"$f":"'49.Árnyékolók beépítése'!I3","v":0}]
["71","Elektromos energiaellátás, villanyszerelés",{"$f":"'71.Elektromos energiaellátás,'!H17","v":0},{"$f":"'71.Elektromos energiaellátás,'!I17","v":0}]
["72","Épületautomatika, -felügyelet (gyengeáram)",{"$f":"'72.Épületautomatika, -felügyel'!H4","v":0},{"$f":"'72.Épületautomatika, -felügyel'!I4","v":0}]
["81","Épületgépészeti csővezeték szerelése",{"$f":"'81.Épületgépészeti csővezeték'!H4","v":0},{"$f":"'81.Épületgépészeti csővezeték'!I4","v":0}]
["82","Épületgépészeti szerelvények és berendezések szerelése",{"$f":"'82.Épületgépészeti szerelvénye'!H20","v":0},{"$f":"'82.Épületgépészeti szerelvénye'!I20","v":0}]
[null,"Összesen (HUF)",{"$f":"ROUND(SUM(C2:C17),0)","v":0},{"$f":"ROUND(SUM(D2:D17),0)","v":0}]

{"sheet":"2.Bontás, építőanyagok újraha","index":2,"n_rows":4,"n_cols":9,"rows_kept":4,"cut":false,"hidden":false,"merged":[]}
["Ssz.","Tételszám","Tétel szövege","Menny.","Egység","Anyag egységár","Díj egységre","Anyag összesen","Díj összesen"]
[1,"02-030-7.2","Vegyes építési- bontási törmelék berakása konténerbe kézi erővel, kiegészítő kézi munkával, Sittcsúszda, vagy kézi szállítással lépcsőházban (zsákos).",30,"m3",0,0,{"$f":"ROUND(F2*D2,0)","v":0},{"$f":"ROUND(G2*D2,0)","v":0}]
[2,"21-011-11.3","Építési törmelék konténeres elszállítása, lerakása, lerakóhelyi díjjal, 5,0 m³-es konténerbe",6,"db",0,0,{"$f":"ROUND(F3*D3,0)","v":0},{"$f":"ROUND(G3*D3,0)","v":0}]
[null,null,"Munkanem összesen (HUF)",{"$nulls":4},{"$f":"ROUND(SUM(H2:H3),0)","v":0},{"$f":"ROUND(SUM(I2:I3),0)","v":0}]

{"sheet":"31.Helyszíni beton és vasbeton","index":3,"n_rows":4,"n_cols":9,"rows_kept":4,"cut":false,"hidden":false,"merged":[]}
["Ssz.","Tételszám","Tétel szövege","Menny.","Egység","Anyag egységár","Díj egységre","Anyag összesen","Díj összesen"]
[1,"31-032-1.3.2-0212511","Felület-előkészítés, alapfelület előkészítése (kellősítése) tapadóhíddal, a gyártó előírása alapján felhordva, 1 rétegben, Cemix KONTAKT ZE/Tapadóhíd cementesztrichhez, Cikkszám: K006190001",110,"m2",0,0,{"$f":"ROUND(F2*D2,0)","v":0},{"$f":"ROUND(G2*D2,0)","v":0}]
[2,"31-032-2.1.2.3-0215002","Kontaktesztrich készítése kézi feldolgozással, cementbázisú esztrichből C20 szilárdsági osztálynak megfelelően, 6 cm vastagságban, SAKRET BE 0-8 beton estrich szem. 0-8 mm, Cikkszám: 12020040",110,"m2",0,0,{"$f":"ROUND(F3*D3,0)","v":0},{"$f":"ROUND(G3*D3,0)","v":0}]
[null,null,"Munkanem összesen (HUF)",{"$nulls":4},{"$f":"ROUND(SUM(H2:H3),0)","v":0},{"$f":"ROUND(SUM(I2:I3),0)","v":0}]

{"sheet":"32.Előregyártott épületszerkez","index":4,"n_rows":3,"n_cols":9,"rows_kept":3,"cut":false,"hidden":false,"merged":[]}
["Ssz.","Tételszám","Tétel szövege","Menny.","Egység","Anyag egységár","Díj egységre","Anyag összesen","Díj összesen"]
[1,"32-002-1.1.1-0121011","Előregyártott azonnal terhelhető nyílásáthidaló  elhelyezése (válaszfal áthidalók is), tartószerkezetre, csomóponti kötés nélkül, falazat szélességű áthidaló elemekből vagy több elem  egymás mellé sorolásával, a teherhordó falváll előkészítésével, kiegészítő hőszigetelés elhelyezése nélkül, 0,10 t/db tömegig, égetett agyag-kerámia köpenyes nyílásáthidaló, BAKONYTHERM 12 kerámia burkolatú nyílásáthidaló, 1,25 m, Cikkszám: ATH002",13,"db",0,0,{"$f":"ROUND(F2*D2,0)","v":0},{"$f":"ROUND(G2*D2,0)","v":0}]
[null,null,"Munkanem összesen (HUF)",{"$nulls":4},{"$f":"ROUND(SUM(H2:H2),0)","v":0},{"$f":"ROUND(SUM(I2:I2),0)","v":0}]

{"sheet":"33.Falazás és egyéb kőműves mu","index":5,"n_rows":6,"n_cols":9,"rows_kept":6,"cut":false,"hidden":false,"merged":[]}
["Ssz.","Tételszám","Tétel szövege","Menny.","Egység","Anyag egységár","Díj egységre","Anyag összesen","Díj összesen"]
[1,"33-000-21.1.1.1.1.1","Válaszfal bontása, égetett agyag-kerámia termékekből, erősítő pillérrel vagy erősítő pillér nélkül falazva, kisméretű, mészhomok, magasított vagy nagyméretű téglából, 15 cm vastagságig, falazó, cementes mészhabarcsból falazva",83,"m2",0,0,{"$f":"ROUND(F2*D2,0)","v":0},{"$f":"ROUND(G2*D2,0)","v":0}]
[2,"33-000-21.1.1.2.1.1","Válaszfal bontása, égetett agyag-kerámia termékekből, erősítő pillérrel vagy erősítő pillér nélkül falazva, üreges kerámia válaszfaltéglából, 6 cm vastagságig, falazó, cementes mészhabarcsból falazva",60,"m2",0,0,{"$f":"ROUND(F3*D3,0)","v":0},{"$f":"ROUND(G3*D3,0)","v":0}]
[3,"33-062-1.1-1110002","Áttörés vezetékek részére, helyreállítással, 0,1 m²/db méretig, tégla válaszfalban, Kisméretű tömör tégla 250x120x65 mm I.o. Hf5-mc, falazó, cementes mészhabarcs",7,"db",0,0,{"$f":"ROUND(F4*D4,0)","v":0},{"$f":"ROUND(G4*D4,0)","v":0}]
[4,"33-063-3.2.3","Horonyvésés, téglafalban, 16,01-24,00 cm² keresztmetszet között",83,"m",0,0,{"$f":"ROUND(F5*D5,0)","v":0},{"$f":"ROUND(G5*D5,0)","v":0}]
[null,null,"Munkanem összesen (HUF)",{"$nulls":4},{"$f":"ROUND(SUM(H2:H5),0)","v":0},{"$f":"ROUND(SUM(I2:I5),0)","v":0}]

{"sheet":"36.Vakolás és rabicolás","index":6,"n_rows":6,"n_cols":9,"rows_kept":6,"cut":false,"hidden":false,"merged":[]}
["Ssz.","Tételszám","Tétel szövege","Menny.","Egység","Anyag egységár","Díj egységre","Anyag összesen","Díj összesen"]
[1,"36-000-1.1.2","Vakolat leverése oldalfalról vagy mennyezetről 1,5 cm vastagságig falazó, meszes cementhabarcs",76,"m2",0,0,{"$f":"ROUND(F2*D2,0)","v":0},{"$f":"ROUND(G2*D2,0)","v":0}]
[2,"36-003-1.1.1.1.1-0414710","Oldalfalvakolat készítése, kézi felhordással, zsákos kiszerelésű szárazhabarcsból, sima, normál mész-cement vakolat, 1 cm vastagságban, Cemix PRÉMIUM kézi alapvakolat, Cikkszám: K00215011",76,"m2",0,0,{"$f":"ROUND(F3*D3,0)","v":0},{"$f":"ROUND(G3*D3,0)","v":0}]
[3,"36-003-2.1.1.1.1-0414710","Mennyezetvakolat készítése, kézi felhordással, zsákos kiszerelésű szárazhabarcsból, sima, normál mész-cement vakolat, 1 cm vastagságban, Cemix PRÉMIUM kézi alapvakolat, Cikkszám: K00215011",4,"m2",0,0,{"$f":"ROUND(F4*D4,0)","v":0},{"$f":"ROUND(G4*D4,0)","v":0}]
[4,"36-090-2.1.2","Vakolatok pótlása, keskenyvakolatok pótlása oldalfalon, 11-20 cm szélesség között",85,"m",0,0,{"$f":"ROUND(F5*D5,0)","v":0},{"$f":"ROUND(G5*D5,0)","v":0}]
[null,null,"Munkanem összesen (HUF)",{"$nulls":4},{"$f":"ROUND(SUM(H2:H5),0)","v":0},{"$f":"ROUND(SUM(I2:I5),0)","v":0}]

{"sheet":"39.Szárazépítés","index":7,"n_rows":4,"n_cols":9,"rows_kept":4,"cut":false,"hidden":false,"merged":[]}
["Ssz.","Tételszám","Tétel szövege","Menny.","Egység","Anyag egységár","Díj egységre","Anyag összesen","Díj összesen"]
[1,"39-001-6.2.3-0210200","UA fém vázszerkezetre szerelt válaszfal 2 x 3 rtg. normál, 12,5 mm vtg. gipszkarton borítással, hőszigeteléssel, csavarfejek és illesztések glettelve (Q2), egyszeres, sűrített, (40 vagy 41,7 cm bordatávolság) UA 100 tartóvázzal, KNAUF A 13 normál építőlemez, 12,5 mm HRAK 1250/2000 Cikksz: 31307120, ásványi szálas hőszigetelés",43,"m2",0,0,{"$f":"ROUND(F2*D2,0)","v":0},{"$f":"ROUND(G2*D2,0)","v":0}]
[2,"39-005-2.1.1-0120032","Szabadon álló előtétfal készítése, üveggyapot szigetelőanyag kitöltéssel, 1 rtg. gipszkarton borítással, 50 mm széles profilvázra szerelve, RIGIPS 1 rtg. RF 15 tűzgátló gipszkarton + 50 mm szigetelőanyag (11 kg/m³), Th=0,5 óra",41,"m2",0,0,{"$f":"ROUND(F3*D3,0)","v":0},{"$f":"ROUND(G3*D3,0)","v":0}]
[null,null,"Csövek eldobozolása",{"$nulls":4},{"$f":"ROUND(SUM(H2:H3),0)","v":0},{"$f":"ROUND(SUM(I2:I3),0)","v":0}]

{"sheet":"42.Hideg- és melegburkolatok k","index":8,"n_rows":9,"n_cols":9,"rows_kept":9,"cut":false,"hidden":false,"merged":[]}
["Ssz.","Tételszám","Tétel szövege","Menny.","Egység","Anyag egységár","Díj egységre","Anyag összesen","Díj összesen"]
[1,"42-000-2.1","Lapburkolatok bontása, padlóburkolat bármely méretű kőagyag, mozaik vagy tört mozaik (NOVA) lapból",158,"m2",0,0,{"$f":"ROUND(F2*D2,0)","v":0},{"$f":"ROUND(G2*D2,0)","v":0}]
[2,"42-000-2.2","Lapburkolatok bontása, fal-, pillér- és oszlopburkolat, bármely méretű mozaik, kőagyag és csempe",62,"m2",0,0,0,0]
[3,"42-000-2.3","Lapburkolatok bontása, lábazatburkolat 0,50 m magasságig,  egyenes egysoros vagy lépcsős kivitelben, 10x10 - 20x20 cm-es lapméretig",16,"m",0,0,0,0]
[4,"42-011-1.1.1.1-0313027","Fal-, pillér és oszlopburkolat hordozószerkezetének felületelőkészítése beltérben, tégla, beton és vakolt alapfelületen, felületelőkészítő alapozó és tapadóhíd felhordása egy rétegben, MAPEI Primer G műgyanta bázisú, diszperziós alapozó, Csz: 020110",220,"m2",0,0,0,0]
[5,"42-011-1.1.1.2-0148702","Fal-, pillér és oszlopburkolat hordozószerkezetének felületelőkészítése beltérben, tégla, beton és vakolt alapfelületen, kenhető víz- és páraszigetelés felhordása egy rétegben,  hajlaterősítő szalag elhelyezésével, SAKRET AA kenhető szigetelés, beltéri",200,"m2",0,0,0,0]
[6,"42-012-1.1.1.1.1.2-0212001","Fal-, pillér-, oszlop- és lábazatburkolat készítése beltérben, tégla, beton, vakolt alapfelületen, mázas kerámiával, kötésben vagy hálósan, 3-5 mm vtg. ragasztóba rakva, 1-10 mm fugaszélességgel, 10x10 - 20x20 cm közötti lapmérettel, Cemix BASIS/Bázis ragasztó, EN 12004 szerinti C1T minősítéssel, beltéri-fagyálló lapokhoz, Cikkszám: K00617011 Cemix Colorin fugázó, EN 13888 szerinti CG2 minősítéssel, fehér, Cikkszám: K00625xxx",183,"m2",0,0,0,0]
[7,"42-022-1.1.1.2.1.1-1212003","Padlóburkolat készítése, beltérben, tégla, beton, vakolt alapfelületen, gres, kőporcelán lappal, kötésben vagy hálósan, 3-5 mm vtg. ragasztóba rakva, 1-10 mm fugaszélességgel, 20x20 - 40x40 cm közötti lapmérettel, Cemix GRES/Gres ragasztó, EN 12004 szerinti C2TE minősítéssel, kül- és beltérbe, fagyálló, padlófűtéshez is, Cikkszám: K00617801 Cemix SILVERCOL Prémium flexibilis fugázó, EN 12004 szerinti CG2WA minősítéssel, Cikkszám: K00675**1",158,"m2",0,0,0,0]
[null,null,"Munkanem összesen (HUF)",{"$nulls":4},{"$f":"ROUND(SUM(H2:H8),0)","v":0},{"$f":"ROUND(SUM(I2:I8),0)","v":0}]

{"sheet":"44.Fa- és műanyag szerkezet el","index":9,"n_rows":10,"n_cols":9,"rows_kept":10,"cut":false,"hidden":false,"merged":[]}
["Ssz.","Tételszám","Tétel szövege","Menny.","Egység","Anyag egységár","Díj egységre","Anyag összesen","Díj összesen"]
[1,"44-000-1.2","Fa vagy műanyag nyílászáró szerkezetek bontása, ajtó, ablak vagy kapu, 2,01-4,00 m² között",8,"m²",0,0,{"$f":"ROUND(F2*D2,0)","v":0},{"$f":"ROUND(G2*D2,0)","v":0}]
[2,"44-000-3","Beépített faszekrény (konyhaszekrény) bontása",28,"m²",0,0,0,0]
[3,"44-000-4","Fa lambéria, radiátor farács bontása",34,"m²",0,0,0,0]
[4,"44-001-1.1.1.2-0131036","Fa beltéri nyílászárók elhelyezése, előre kihagyott falnyílásba, utólagos elhelyezéssel, tömítés nélkül, (szerelvényezve, finom beállítással), MDF vagy keményhéjszerkezetes ajtó, 6,01-10,00 m kerület között, Beltéri kazettás ajtó, tele lemezelt, egyszárnyú, MDF tokkal, kilincs nélkül, 100x210 cm",8,"db",0,0,0,0]
[5,"44-090-5","Ütköző, záró és szegélylécek felszerelése csavarozással",2,"m",0,0,0,0]
[6,"44-090-52.1","Mérőóraszekrény ajtó, elektromos",2,"db",0,0,0,0]
[7,"44-090-11.9-0213061","Ajtószerelvények pótlása, cseréje, biztonsági ajtózár, egyen kulcsműködtetésű biztonsági ajtózár záranként 4 kulccsal. (132 db), kilincs és egyéb vasalattal együtt",33,"db",0,0,0,0]
[8,"44-090-12.2","Zárak cseréje, bútorzár, beépített szekrényekre ",28,"db",0,0,0,0]
[null,null,"Munkanem összesen (HUF)",{"$nulls":4},{"$f":"ROUND(SUM(H2:H9),0)","v":0},{"$f":"ROUND(SUM(I2:I9),0)","v":0}]

{"sheet":"45.Fém nyílászáró és épületlak","index":10,"n_rows":7,"n_cols":9,"rows_kept":7,"cut":false,"hidden":false,"merged":[]}
["Ssz.","Tételszám","Tétel szövege","Menny.","Egység","Anyag egységár","Díj egységre","Anyag összesen","Díj összesen"]
[1,"45-000-2.3","Rácsok, korlátok, kerítések bontása, ablakrács",4,"db",0,0,{"$f":"ROUND(F2*D2,0)","v":0},{"$f":"ROUND(G2*D2,0)","v":0}]
[2,"45-000-2.1","Rácsok, korlátok, kerítések bontása, idomacél rács vagy korlát",6,"m",0,0,{"$f":"ROUND(F3*D3,0)","v":0},{"$f":"ROUND(G3*D3,0)","v":0}]
[3,"45-000-1.2.3","Fém nyílászáró szerkezetek bontása, fém portálok, üvegfalak, 5,01 m² felület felett",36,"m2",0,0,{"$f":"ROUND(F4*D4,0)","v":0},{"$f":"ROUND(G4*D4,0)","v":0}]
[4,"45-004-4.2-0990116","Betétrács, ablakrács elhelyezése falazatba, véséssel, befalazással, 50,01 kg/db tömeg felett, Betétrács, ablakrács 50,00 kg/db tömeg felett Rozsdagátló alapozása, fedőszín 2 rétegben fehér színben! osztás 9/40cm 10x10 rúdacélból",97,"m2",0,0,{"$f":"ROUND(F5*D5,0)","v":0},{"$f":"ROUND(G5*D5,0)","v":0}]
[5,"45-004-4.2","Betétrács, ajtórács elhelyezése falazatba, véséssel, befalazással, 50,01 kg/db tömeg felett 9 cm osztással, 10mm rúdacélból, rozsdagátló alapozása, fedőszín 2 rétegben fehér színben.",49,"m2",0,0,{"$f":"ROUND(F6*D6,0)","v":0},{"$f":"ROUND(G6*D6,0)","v":0}]
[null,null,"Munkanem összesen (HUF)",{"$nulls":4},{"$f":"ROUND(SUM(H2:H6),0)","v":0},{"$f":"ROUND(SUM(I2:I6),0)","v":0}]

{"sheet":"47.Felületképzés","index":11,"n_rows":8,"n_cols":9,"rows_kept":8,"cut":false,"hidden":false,"merged":[]}
["Ssz.","Tételszám","Tétel szövege","Menny.","Egység","Anyag egységár","Díj egységre","Anyag összesen","Díj összesen"]
[1,"47-000-1.3.1.1","Belső festéseknél felület előkészítése, részmunkák; vizes diszperziós falfesték lekaparása, bármilyen padozatú helységben, tagolatlan felületen",150,"m2",0,0,{"$f":"ROUND(F2*D2,0)","v":0},{"$f":"ROUND(G2*D2,0)","v":0}]
[2,"47-000-1.8.1.2","Belső festéseknél felület előkészítése, részmunkák; penészmentesítő folyadék felhordása (lakásban már kialakult, meglévő élő penészre) vakolt, tagolt felületen",20,"m2",0,0,0,0]
[3,"47-000-1.21.1.1.1.2","Belső festéseknél felület előkészítése, részmunkák; glettelés, hagyományos meszes glettel, vakolt felületen, bármilyen padozatú helyiségben, tagolt felületen",2.5,"100 m2",0,0,0,0]
[4,"47-000-1.21.7.3.2-0218154","Belső festéseknél felület előkészítése, részmunkák; glettelés, gipszes glettel, gipszkarton felületen, tagolt felületen, Rigips ProMix Finish készre kevert kézi/gépi simító glett",50,"m2",0,0,0,0]
[5,"47-010-1.2.4.1-0426005","Enyhén nedvszívó vagy sima falfelületek \ntapadásközvetítő alapozása,\nszilikon-bázisú alapozóval,\ntagolatlan felületen\n",400,"m2",0,0,{"$f":"ROUND(F6*D6,0)","v":0}]
[6,"47-011-15.1.1.1-0150241","Diszperziós festés műanyag bázisú vizes-diszperziós  fehér vagy gyárilag színezett festékkel, új vagy régi lekapart, előkészített alapfelületen, vakolaton, két rétegben, tagolatlan sima felületen, SAKRET DFI  diszperziós beltéri festék, fehér",400,"m2",0,0,0,0]
[null,null,"Munkanem összesen (HUF)",{"$nulls":4},{"$f":"ROUND(SUM(H2:H7),0)","v":0},{"$f":"ROUND(SUM(I2:I7),0)","v":0}]

{"sheet":"48.Szigetelés","index":12,"n_rows":3,"n_cols":9,"rows_kept":3,"cut":false,"hidden":false,"merged":[]}
["Ssz.","Tételszám","Tétel szövege","Menny.","Egység","Anyag egységár","Díj egységre","Anyag összesen","Díj összesen"]
[1,"48-014-4.2-0211252","Üzemi-használati víz elleni, víznyomásnak nem kitett helyzetű,  kerámia vagy GRES lapburkolat alatti függőleges falszigetelés bevonatszigeteléssel, két rétegben, minimum 0,8 mm száraz rétegvastagságú, kétkomponensű ún. \"folyékony fóliával\" (rugalmas műanyagdiszperzió) glettvassal vagy hengerrel felhordva, KEMIKÁL SORIFLEX 2K folyékony fólia kül- és beltérre, flexibilis, fagyálló",28,"m2",0,0,{"$f":"ROUND(F2*D2,0)","v":0},{"$f":"ROUND(G2*D2,0)","v":0}]
[null,null,"Munkanem összesen (HUF)",{"$nulls":4},{"$f":"ROUND(SUM(H2:H2),0)","v":0},{"$f":"ROUND(SUM(I2:I2),0)","v":0}]

{"sheet":"49.Árnyékolók beépítése","index":13,"n_rows":3,"n_cols":9,"rows_kept":3,"cut":false,"hidden":false,"merged":[]}
["Ssz.","Tételszám","Tétel szövege","Menny.","Egység","Anyag egységár","Díj egységre","Anyag összesen","Díj összesen"]
[2,"49-101-2.4-0122506","Biztonsági UV szűrős (100 mikron vtg.) fóliák ragasztása vegytiszta felületre, 4,01-10,00 m² között, Víztiszta biztonsági fólia",108,"m2",0,0,{"$f":"ROUND(F2*D2,0)","v":0},{"$f":"ROUND(G2*D2,0)","v":0}]
[null,null,"Munkanem összesen (HUF)",{"$nulls":4},{"$f":"ROUND(SUM(H2:H2),0)","v":0},{"$f":"ROUND(SUM(I2:I2),0)","v":0}]

{"sheet":"71.Elektromos energiaellátás,","index":14,"n_rows":20,"n_cols":15,"rows_kept":20,"cut":false,"hidden":false,"merged":[]}
["Ssz.","Tételszám","Tétel szövege","Menny.","Egység","Anyag egységár","Díj egységre","Anyag összesen","Díj összesen"]
[1,"71-000-1.11","Vezetékek, kábelek és szerelvények bontása; kapcsolók, csatlakozó aljzatok, falifoglalatok, csengők, reduktorok, erős- vagy gyengeáramú nyomók, termosztátok, lépcsőházi automaták, jelzők leszerelése",161,"db",0,0,{"$f":"ROUND(F2*D2,0)","v":0},{"$f":"ROUND(G2*D2,0)","v":0}]
[2,"71-001-24.1.1-0130021","Műanyag vezetékcsatorna, padlószegélycsatorna elhelyezése előre elkészített tartószerkezetre szerelve, idomdarabok nélkül, szélesség: 40 mm-ig, Beltéri könnyű kivitelű műanyag kábelcsatorna, sima, fehér 25x25 mm, Kód: MCSN 25*25F",62,"m",0,0,0,0]
[3,"71-001-24.1.1-0130254","Műanyag vezetékcsatorna, padlószegélycsatorna elhelyezése előre elkészített tartószerkezetre szerelve, idomdarabok nélkül, szélesség: 40 mm-ig, Beltéri könnyű kivitelű műanyag kábelcsatorna, sima, fehér 40x40 mm, Kód: MCSN 40*40S",8,"m",0,0,0,0]
[4,"71-002-20.1.1-0217092","Kábelszerű vezeték elhelyezése védőcsőbe húzva vagy vezetékcsatornába fektetve, 2-5 erű rézvezetővel, leágazó kötésekkel, szigetelés ellenállás méréssel, a szerelvényekhez csatlakozó vezetékvégek bekötése nélkül, 2-3 erű, gyors vezetékösszekötővel, keresztmetszet: 2,5 mm2-ig, Cabling Systems Hungary H05VV-F 300/500V műanyag tömlő vezeték 3x1,5 mm², hajlékony rézvezetővel (MT)",300,"m",0,0,0,0]
[5,"71-002-20.1.1-0217093","Kábelszerű vezeték elhelyezése védőcsőbe húzva vagy vezetékcsatornába fektetve, 2-5 erű rézvezetővel, leágazó kötésekkel, szigetelés ellenállás méréssel, a szerelvényekhez csatlakozó vezetékvégek bekötése nélkül, 2-3 erű, gyors vezetékösszekötővel, keresztmetszet: 2,5 mm2-ig, Cabling Systems Hungary H05VV-F 300/500V műanyag tömlő vezeték 3x2,5 mm², hajlékony rézvezetővel (MT)",200,"m",0,0,0,0]
[6,"71-003-9-0310353","Vezetékösszekötők elhelyezése, WAGO 221-413 csatos vezetékösszekötő, 3x0,2-4mm2 hajlékony és tömör vezetékhez 32A",100,"db",0,0,0,0]
[7,"71-003-13.1-0630016","Fésűs sín felszerelése kismegszakítókra, 13 modul méretig, LEGRAND Lexic fésűs sín fogas 3P 4x3P (Kat.szám:404942)",1,"db",0,0,0,0]
[8,"71-005-1.1.1.2-0230104","Komplett világítási  és telekommunikációs szerelvények, Fali kapcsolók elhelyezése, süllyesztve, 6-16A kétpólusú kapcsolók, LEGRAND Cariva kétpólusú kapcsoló kerettel, fehér (Kat.szám:773802)",89,"db",0,0,0,0]
[9,"71-005-1.31.2-0533640","Komplett világítási  és telekommunikációs szerelvények, Telefon és PC csatlakozóaljzat, USB töltő aljzat, hangszóró-csatlakozó elhelyezése (egyes/kettős), PC, USB, hangszóró, LEGRAND Galea 1xRJ45 Cat5e UTP mechanizmus, LCS2 (Kat.szám:775761)",29,"db",0,0,0,0]
[10,"71-005-1.11.1.1.1-0230109","Komplett világítási  és telekommunikációs szerelvények, Csatlakozóaljzat elhelyezése, süllyesztve, 16A, földelt, egyes csatlakozóaljzat (2P+F), LEGRAND Cariva 2P+F csatlakozóaljzat kerettel, fehér (Kat.szám:773820)",135,"db",0,0,0,0]
[11,"71-008-9.3.1-0547693","Kismegszakítók és kiegészítők elhelyezése kalapsínes szerelőlapra,\"B\", \"C\" és \"D\" jelleggörbével, 6 kA zárlati szilárdsággal, 1 pólusú, LEGRAND RX3 kismegszakító 1P B16 6000A BIC (Kat.szám:419136)",6,"db",0,0,0,0]
[12,"71-008-9.3.1-0547692","Kismegszakítók és kiegészítők elhelyezése kalapsínes szerelőlapra,\"B\", \"C\" és \"D\" jelleggörbével, 6 kA zárlati szilárdsággal, 1 pólusú, LEGRAND RX3 kismegszakító 1P B10 6000A BIC (Kat.szám:419134)",6,"db",0,0,0,0]
[13,"71-010-2.7-0143248","Felületre szerelt lámpatest elhelyezése előre elkészített tartószerkezetre, zárt, LED-es kivitelben, V-TAC (HOLUX) VT-6040; 40W / 3200lm por- és páramentes mennyezeti LED-es lámpatest, fém békazárral, hidegfehér (6000K), IP65, 600mm Csz:6154",14,"db",0,0,0,0]
[14,"71-010-2.7-0187192","Felületre szerelt lámpatest elhelyezése előre elkészített tartószerkezetre, zárt, LED-es kivitelben, GT LITE Led panel ECO Line 40W, 600x600 mm, 4000K 3600 lm 90 lumen/Watt, 20.000 üzemóra, méret (mm): 595x595x9, term.kód: GPN101",10,"db",0,0,0,0]
[15,"71-013-9","Villám és érintésvédelmi mérés és jegyzőkönyv készítése",1,"klt",0,0,0,0]
[null,null,"Munkanem összesen (HUF)",{"$nulls":4},{"$f":"ROUND(SUM(H2:H16),0)","v":0},{"$f":"ROUND(SUM(I2:I16),0)","v":0}]
[]
[]
[{"$nulls":14},0]

{"sheet":"72.Épületautomatika, -felügyel","index":15,"n_rows":4,"n_cols":9,"rows_kept":4,"cut":false,"hidden":false,"merged":[]}
["Ssz.","Tételszám","Tétel szövege","Menny.","Egység","Anyag egységár","Díj egységre","Anyag összesen","Díj összesen"]
[1,"72-001-1.2","Csengő, gong, csengőtranszformátor, nyílászáró nyitás érzékelő elhelyezése, falra szerelt kivitelben Kinetikus-230V jelzővel",1,"db",0,0,{"$f":"ROUND(F2*D2,0)","v":0},{"$f":"ROUND(G2*D2,0)","v":0}]
[2,"72-001-1.2-0347811","Nővérhívó rendszer telepítése, 2 db kijelzővel, 45 db jelző/nyugtázó, tápegységgel, zsinoros jelzökkel , kiegészítő alkatrészeivel kompletten szerelve. Rádios rendszert  kell telepíteni  Nem ágysávba kell telepíteni. Szabadon falra fix rögzítéssel",1,"klt",0,0,{"$f":"ROUND(F3*D3,0)","v":0},{"$f":"ROUND(G3*D3,0)","v":0}]
[null,null,"Munkanem összesen (HUF)",{"$nulls":4},{"$f":"ROUND(SUM(H2:H3),0)","v":0},{"$f":"ROUND(SUM(I2:I3),0)","v":0}]

{"sheet":"81.Épületgépészeti csővezeték","index":16,"n_rows":4,"n_cols":9,"rows_kept":4,"cut":false,"hidden":false,"merged":[]}
["Ssz.","Tételszám","Tétel szövege","Menny.","Egység","Anyag egységár","Díj egységre","Anyag összesen","Díj összesen"]
[1,"81-000-1.6","Csővezetékek bontása, vízvezeték elzárás és nyitás, javítási munkák előtt és után",25,"m",0,0,{"$f":"ROUND(F2*D2,0)","v":0},{"$f":"ROUND(G2*D2,0)","v":0}]
[2,"81-001-1.3.1.1","Ivóvíz vezeték, Ötrétegű cső szerelése, PE-Xa/Al/PE-HD anyagból, toldóhüvelyes kötésekkel, cső elhelyezése csőidomok nélkül, szakaszos nyomáspróbával, falhoronyba vagy padlószerkezetbe szerelve mosdókhoz, mosogatókhoz, WC-k részére, kiegészítő idomokkal együtt.",32,"m",0,0,{"$f":"ROUND(F3*D3,0)","v":0},{"$f":"ROUND(G3*D3,0)","v":0}]
[null,null,"Munkanem összesen (HUF)",{"$nulls":4},{"$f":"ROUND(SUM(H2:H3),0)","v":0},{"$f":"ROUND(SUM(I2:I3),0)","v":0}]

{"sheet":"82.Épületgépészeti szerelvénye","index":17,"n_rows":20,"n_cols":9,"rows_kept":20,"cut":false,"hidden":false,"merged":[]}
["Ssz.","Tételszám","Tétel szövege","Menny.","Egység","Anyag egységár","Díj egységre","Anyag összesen","Díj összesen"]
[1,"82-000-1.2.1","Szerelvények leszerelése, menetes szerelvények, DN 50 méretig",6,"db",0,0,{"$f":"ROUND(F2*D2,0)","v":0},{"$f":"ROUND(G2*D2,0)","v":0}]
[2,"82-000-3.1","Vízellátás berendezési tárgyak leszerelése, szelepek, bekötőcsövek, könyökök, zsírfogók stb.",18,"db",0,0,0,0]
[3,"82-000-3.2","Vízellátás berendezési tárgyak leszerelése, falikutak, mosdók",32,"db",0,0,0,0]
[4,"82-000-3.4","Vízellátás berendezési tárgyak leszerelése, WC csésze tartozékokkal",11,"db",0,0,0,0]
[5,"82-000-3.6","Vízellátás berendezési tárgyak leszerelése, öblítőtartály tartozékokkal",11,"db",0,0,0,0]
[6,"82-000-3.9.2","Vízellátás berendezési tárgyak leszerelése, zuhanytálcák beépített",2,"db",0,0,0,0]
[7,"82-009-11.1.4.2-0314064","WC csésze elhelyezése és bekötése, sarokszelep, WC ülőke, nyomógomb nélkül, porcelánból, monoblokkos, alsókifolyású mélyöblítésű kivitelben, GROHE Bau Ceramic álló WC (falhoz) monoblokkos kombinációhoz, mély öblítéses, perem nélküli, alsó kifolyás, rejtett, öblítési mennyiség 6/3 l, rögzítőkészlettel együtt, szaniter kerámia, Cikkszám: 39429000",11,"db",0,0,0,0]
[8,"82-009-5.1-0112641","Mosdó vagy mosómedence berendezés elhelyezése és bekötése, kifolyószelep, bűzelzáró és sarokszelep nélkül, falra szerelhető porcelán kivitelben (komplett), ALFÖLDI/BÁZIS porcelán mosdó 60 cm, 3 csaplyukkal, fúrt, 4196 71 01, fehér",22,"db",0,0,0,0]
[9,"82-009-17.1-0110162","Berendezési tárgyak szerelvényeinek felszerelése, sarokszelep szerelés, MOFÉM sárgaréz sarokszelep 1/2\"-3/8\" sárgaréz, krómozott, 10 bar, Csz: 163-0006-00",55,"db",0,0,0,0]
[10,"82-009-19.2.1-0318042","Csaptelepek és szerelvényeinek felszerelése, zuhanycsaptelepek, fali zuhanycsaptelep, MOFÉM Junior egykaros falraszerelhető zuhanycsaptelep, ECO kerámia vezérlőegység forrázás elleni védelemmel, kr. tartozékokkal, kód: 153-0009-00",4,"db",0,0,0,0]
[11,"82-009-19.5.1-0318041","Csaptelepek és szerelvényeinek felszerelése, mosogató csaptelepek, fali mosogató csaptelep, MOFÉM Junior egykaros falraszerelhető mosogatócsaptelep, ECO kerámia vezérlőegység forrázás elleni védelemmel, kr., kód: 152-0023-00",4,"db",0,0,0,0]
[12,"82-009-19.3.2-0318046","Csaptelepek és szerelvényeinek felszerelése, mosdócsaptelepek, álló illetve süllyesztett mosdócsaptelep, MOFÉM Junior egykaros mosdócsaptelep, ECO kerámia vezérlőegység forrázás elleni védelemmel, kr. lánctartó szemmel, kód: 150-0021-00",18,"db",0,0,0,0]
[13,"82-009-32-0181139","Mozgássérült vízellátási berendezések kiegészítő szerelvényeinek elhelyezése, B&K sarokkapaszkodó baloldali függőleges elemmel, szinterezett acél, 670x670x780 mm, fehér, Cikkszám: TH132",1,"db",0,0,0,0]
[14,"82-009-32-0181183","Mozgássérült vízellátási berendezések kiegészítő szerelvényeinek elhelyezése, B&K felhajtható kapaszkodó, szinterezett acél, 830 mm, színes, Cikkszám: TH830SZ",1,"db",0,0,0,0]
[15,"82-009-32-0181203","Mozgássérült vízellátási berendezések kiegészítő szerelvényeinek elhelyezése, B&K vízszintes kapaszkodó, szinterezett acél, 600 mm, fehér, Cikkszám: BKTHM60W",1,"db",0,0,0,0]
[16,"82-009-32-0181271","Mozgássérült vízellátási berendezések kiegészítő szerelvényeinek elhelyezése, B&K felhajtható zuhanyszék, falra szerelhető, műgyanta ülőlappal, Cikkszám: BKTHSRDW1",1,"db",0,0,0,0]
[17,"82-009-101.2.1.1.1","Rozsdamentes folyókák elhelyezése és bekötése, előregyártott rendszer, rácsos kivitel, egyenes elemek, hosszúság: 1000 mm-ig",3,"db",0,0,0,0]
[18,"82-016-1.2.3-0391465","Piperetárgyak elhelyezése négy vagy több helyen felerősítve, tükör, elektromos bekötés nélkül, Green Clean - fali, r.m. acél tükör, vandálbiztos, 600 x 600 mm, furatok és rögzítőelemek nélkül, AISI304 - bakteriosztatikus, Magyarország, 600x600 mm, 2,25 kg, 0,8 mm lemezvastagság, GCRM600600",22,"db",0,0,0,0]
[null,null,"Munkanem összesen (HUF)",{"$nulls":4},{"$f":"ROUND(SUM(H2:H19),0)","v":0},{"$f":"ROUND(SUM(I2:I19),0)","v":0}]